fUST/lending_fUST_20250722
["ID","MTS","AMOUNT","RATE_DAILY","PERIOD"]
[374091647,1753199447210,-1158.85159966,0.00023063,2]
[374091649,1753199447220,-2167.04628272,0.00023064,2]
[374091651,1753199447230,-590.58204308,0.00023065,2]
[374091653,1753199447239,-274.52,0.00023093,2]
[374091655,1753199447248,-19642.97,0.000231,2]
[374091657,1753199447258,-514.04,0.0002314,4]
[374091659,1753199447268,-1309.04860383,0.00023141,8]
[374091661,1753199447277,-5040.78,0.000232,7]
[374091663,1753199447287,-248.71531821,0.00023218,2]
[374091665,1753199447297,-460.0,0.00023232,2]
[374091667,1753199447306,-460.0,0.00023232,2]
[374091669,1753199447315,-514.04,0.0002324,2]
[374091671,1753199447325,-538.0,0.00023306,2]
[374091673,1753199447334,-514.04,0.0002334,7]
[374091675,1753199447343,-1200.0,0.00023372,2]
[374091676,1753199447353,-1309.04860383,0.00023417,9]
[374091678,1753199447366,-514.04,0.0002344,6]
[374091681,1753199447376,-538.0,0.00023451,2]
[374091682,1753199447385,-151.0,0.00023486,6]
[374091683,1753199447395,-538.0,0.00023504,2]
[374091684,1753199447405,-174.06766741,0.00023506,2]
[374091686,1753199447415,-460.0,0.00023506,2]
[374091687,1753199447425,-514.04,0.0002354,5]
[374091689,1753199447435,-151.0,0.000236,10]
[374091691,1753199447444,-514.04,0.0002364,4]
[374091693,1753199447453,-538.0,0.00023652,2]
[374091695,1753199447463,-538.0,0.00023663,2]
[374091697,1753199447472,-538.0,0.00023672,2]
[374091699,1753199447482,-538.0,0.0002368,2]
[374091701,1753199447492,-800.0,0.00023682,2]
[374091703,1753199447501,-1309.04860383,0.00023693,9]
[374091705,1753199447511,-538.0,0.00023699,2]
[374091707,1753199447521,-286.94,0.000237,7]
[374091709,1753199447530,-583.97,0.000237,7]
[374091711,1753199447539,-643.0,0.000237,2]
[374091713,1753199447549,-538.0,0.00023728,2]
[374091715,1753199447559,-514.04,0.0002374,6]
[374091717,1753199447569,-538.0,0.00023741,2]
[374091719,1753199447579,-460.0,0.0002378,2]
[374091721,1753199447588,-538.0,0.00023819,2]
[374091723,1753199447599,-514.04,0.0002384,3]
[374091725,1753199447608,-1160.24,0.000239,2]
[374091727,1753199447618,-526.23456936,0.000239,2]
[374091729,1753199447628,-538.0,0.00023934,2]
[374091731,1753199447638,-514.04,0.0002394,2]
[374091733,1753199447647,-164.9579112,0.00023945,2]
[374091735,1753199447657,-151.0,0.00023946,7]
[374091737,1753199447666,-1309.04860383,0.00023969,10]
[374091739,1753199447675,-160.0,0.00024,7]
[374091741,1753199447684,-514.04,0.0002404,4]
[374091743,1753199447695,-460.0,0.00024053,2]
[374091745,1753199447705,-514.04,0.0002414,5]
[374091747,1753199447713,-19642.97,0.000242,2]
[374091749,1753199447724,-800.0,0.00024235,2]
[374091751,1753199447734,-514.04,0.0002424,5]
[374091753,1753199447744,-150.406639,0.00024242,2]
[374091755,1753199447753,-1309.04860383,0.00024245,10]
[374091757,1753199447763,-164.9579112,0.00024247,2]
[374091759,1753199447772,-600.0,0.00024313,2]
[374091761,1753199447781,-460.0,0.00024327,2]
[374091763,1753199447791,-514.04,0.0002434,7]
[374091765,1753199447801,-308.83,0.00024376,2]
[374091767,1753199447810,-1200.0,0.00024388,2]
[374091769,1753199447819,-5040.78,0.000244,7]
[374091771,1753199447829,-173.31302,0.00024401,8]
[374091773,1753199447839,-151.0,0.00024406,7]
[374091778,1753199447872,-514.0894476,0.0002444,7]
[374091780,1753199447882,-1309.04860383,0.00024521,11]
[374091782,1753199447891,-600.0,0.00024566,2]
[374091784,1753199447900,-164.9579112,0.00024575,2]
[374091786,1753199447909,-257.91778498,0.00024587,2]
[374091788,1753199447919,-460.0,0.00024601,2]
[374091790,1753199447929,-500.0,0.00024658,2]
[374091792,1753199447938,-500.0,0.00024658,2]
[374091794,1753199447948,-151.0,0.00024658,2]
[374091796,1753199447957,-151.0,0.00024658,2]
[374091798,1753199447966,-430.0,0.00024658,2]
[374091800,1753199447975,-151.0,0.00024658,2]
[374091802,1753199447985,-151.0,0.00024658,2]
[374091804,1753199447994,-211.12151948,0.00024658,2]
[374091806,1753199448003,-151.0,0.00024658,2]
[374091808,1753199448013,-200.0,0.0002476,12]
[374091810,1753199448023,-800.0,0.00024778,2]
[374091812,1753199448035,-1309.04860383,0.00024797,11]
[374091814,1753199448044,-155.366239,0.000248,7]
[374091816,1753199448054,-151.0,0.000248,7]
[374091818,1753199448063,-151.0,0.000248,7]
[374091820,1753199448073,-151.0,0.000248,7]
[374091822,1753199448083,-268.312637,0.000248,7]
[374091824,1753199448093,-150.406639,0.00024817,3]
[374091826,1753199448104,-151.0,0.00024866,7]
[374091828,1753199448115,-460.0,0.00024875,2]
[374091830,1753199448124,-5396.91,0.0002489,10]
[374091832,1753199448134,-4497.43,0.0002489,10]
[374091834,1753199448144,-151.0,0.000249,7]
[374091836,1753199448154,-151.0,0.000249,7]
[374091838,1753199448163,-151.0,0.000249,7]
[374091840,1753199448172,-1209.25725793,0.000249,2]
[374091842,1753199448182,-151.0,0.000249,7]
[374091844,1753199448191,-151.95371,0.000249,2]
[374091846,1753199448200,-151.0,0.000249,7]
[374091848,1753199448209,-1044.239207,0.000249,7]
[374091850,1753199448218,-1044.239207,0.000249,7]
[374091852,1753199448227,-151.0,0.000249,7]
[374091854,1753199448237,-151.0,0.000249,7]
[374091856,1753199448246,-151.0,0.000249,7]
[374091858,1753199448255,-151.0,0.000249,7]
[374091860,1753199448264,-151.0,0.000249,7]
[374091862,1753199448273,-151.0,0.000249,7]
[374091864,1753199448282,-1090.84276416,0.000249,2]
[374091866,1753199448290,-152.029843,0.000249,7]
[374091867,1753199448300,-151.0,0.000249,7]
[374091869,1753199448309,-500.0,0.00024932,2]
[374091871,1753199448319,-500.0,0.00024932,2]
[374091873,1753199448328,-151.0,0.00024932,2]
[374091875,1753199448337,-430.0,0.00024932,2]
[374091877,1753199448347,-500.0,0.00024973,2]
[374091879,1753199448356,-206.0,0.0002498,2]
[374091881,1753199448367,-161.68943989,0.00025,5]
[374091883,1753199448376,-1013.75376412,0.00025,10]
[374091885,1753199448385,-2000.0,0.00025,2]
[374091887,1753199448394,-44222.64663876,0.00025,30]
[374091889,1753199448403,-173.0,0.00025,7]
[374091891,1753199448412,-172.0,0.00025,7]
[374091893,1753199448422,-526.07605158,0.00025,10]
[374091895,1753199448432,-526.07605158,0.00025,30]
[374091897,1753199448441,-214.6393183,0.00025,3]
[374091899,1753199448451,-4184.34780927,0.00025,3]
[374091901,1753199448460,-1309.04860383,0.00025072,12]
[374091903,1753199448469,-151.0,0.0002508,7]
[374091905,1753199448479,-151.0,0.0002508,7]
[374091907,1753199448488,-151.0,0.0002508,7]
[374091909,1753199448497,-151.0,0.0002508,7]
[374091911,1753199448508,-151.0,0.0002508,7]
[374091913,1753199448518,-151.0,0.0002508,7]
[374091915,1753199448527,-151.0,0.0002508,7]
[374091917,1753199448537,-151.0,0.0002508,7]
[374091919,1753199448547,-151.0,0.0002508,7]
[374091921,1753199448556,-151.0,0.0002508,7]
[374091923,1753199448565,-151.0,0.0002508,7]
[374091925,1753199448575,-151.0,0.0002508,7]
[374091927,1753199448584,-151.0,0.0002508,7]
[374091929,1753199448594,-151.0,0.0002508,7]
[374091932,1753199448604,-174.890221,0.0002508,7]
[374091934,1753199448616,-151.0,0.0002508,7]
[374091936,1753199448626,-151.0,0.0002508,7]
[374091937,1753199448635,-151.0,0.0002508,7]
[374091940,1753199448646,-151.0,0.0002508,7]
[374091942,1753199448656,-151.0,0.0002508,7]
[374091944,1753199448666,-164.21927,0.0002508,7]
[374091946,1753199448676,-151.0,0.0002508,7]
[374091948,1753199448686,-151.0,0.0002508,7]
[374091949,1753199448696,-151.0,0.0002508,7]
[374091952,1753199448706,-251.40456,0.0002508,7]
[374091954,1753199448716,-151.0,0.0002508,7]
[374091956,1753199448725,-151.0,0.0002508,7]
[374091958,1753199448735,-151.0,0.0002508,7]
[374091960,1753199448744,-151.0,0.0002508,7]
[374091962,1753199448754,-151.0,0.0002508,7]
[374091964,1753199448764,-1044.239207,0.0002508,7]
[374091966,1753199448773,-1044.239207,0.0002508,7]
[374091968,1753199448783,-1044.239207,0.0002508,7]
[374091970,1753199448793,-1044.239207,0.0002508,7]
[374091972,1753199448803,-1044.239207,0.0002508,7]
[374091974,1753199448813,-1044.239207,0.0002508,7]
[374091976,1753199448823,-1044.239207,0.0002508,7]
[374091978,1753199448833,-1044.239207,0.0002508,7]
[374091980,1753199448843,-1044.239207,0.0002508,7]
[374091982,1753199448853,-1044.239207,0.0002508,7]
[374091984,1753199448864,-1044.239207,0.0002508,7]
[374091986,1753199448874,-1044.239207,0.0002508,7]
[374091988,1753199448884,-1044.239207,0.0002508,7]
[374091990,1753199448894,-1044.239207,0.0002508,7]
[374091992,1753199448903,-1044.239207,0.0002508,7]
[374091994,1753199448913,-1044.239207,0.0002508,7]
[374091996,1753199448923,-1044.239207,0.0002508,7]
[374091998,1753199448932,-1044.23921197,0.0002508,7]
[374092000,1753199448942,-151.0,0.0002508,7]
[374092002,1753199448952,-151.0,0.0002508,7]
[374092004,1753199448961,-151.0,0.0002508,7]
[374092006,1753199448971,-151.0,0.0002508,7]
[374092008,1753199448980,-200.0,0.00025109,2]
[374092011,1753199448990,-225.03,0.0002511,7]
[374092013,1753199449000,-151.0,0.0002511,7]
[374092015,1753199449009,-151.0,0.0002511,7]
[374092017,1753199449020,-151.0,0.0002511,7]
[374092019,1753199449033,-151.0,0.0002511,7]
[374092021,1753199449043,-151.0,0.0002511,7]
[374092023,1753199449053,-151.0,0.0002511,7]
[374092025,1753199449063,-165.219473,0.0002511,7]
[374092027,1753199449073,-151.0,0.0002511,7]
[374092029,1753199449083,-151.0,0.0002511,7]
[374092031,1753199449092,-151.0,0.0002511,7]
[374092033,1753199449102,-151.0,0.0002511,7]
[374092035,1753199449113,-151.0,0.0002511,7]
[374092037,1753199449123,-151.0,0.0002511,7]
[374092039,1753199449133,-151.0,0.0002511,7]
[374092041,1753199449142,-151.0,0.0002511,7]
[374092043,1753199449152,-151.0,0.0002511,7]
[374092045,1753199449161,-151.0,0.0002511,7]
[374092047,1753199449171,-151.0,0.0002511,7]
[374092049,1753199449180,-151.0,0.0002511,7]
[374092051,1753199449189,-151.0,0.0002511,7]
[374092053,1753199449200,-151.0,0.0002511,7]
[374092055,1753199449209,-151.0,0.0002511,7]
[374092057,1753199449219,-151.0,0.0002511,7]
[374092059,1753199449229,-293.676464,0.0002511,7]
[374092061,1753199449239,-151.0,0.0002511,7]
[374092063,1753199449249,-151.0,0.0002511,7]
[374092065,1753199449261,-151.0,0.0002511,7]
[374092067,1753199449271,-151.0,0.0002511,7]
[374092069,1753199449280,-151.847431,0.0002511,7]
[374092071,1753199449290,-151.0,0.0002511,7]
[374092073,1753199449300,-350.064902,0.0002511,7]
[374092075,1753199449309,-350.064902,0.0002511,7]
[374092077,1753199449319,-350.064902,0.0002511,7]
[374092079,1753199449328,-350.064902,0.0002511,7]
[374092081,1753199449338,-350.064902,0.0002511,7]
[374092083,1753199449348,-350.064902,0.0002511,7]
[374092085,1753199449357,-350.064902,0.0002511,7]
[374092088,1753199449368,-350.064902,0.0002511,7]
[374092090,1753199449378,-350.064902,0.0002511,7]
[374092092,1753199449387,-350.064902,0.0002511,7]
[374092094,1753199449397,-350.064902,0.0002511,7]
[374092096,1753199449407,-350.064902,0.0002511,7]
[374092098,1753199449418,-350.064902,0.0002511,7]
[374092100,1753199449428,-350.064902,0.0002511,7]
[374092102,1753199449437,-350.064902,0.0002511,7]
[374092104,1753199449448,-350.064902,0.0002511,7]
[374092106,1753199449458,-350.064902,0.0002511,7]
[374092108,1753199449467,-350.064902,0.0002511,7]
[374092110,1753199449477,-350.064902,0.0002511,7]
[374092112,1753199449487,-350.064907,0.0002511,7]
[374092114,1753199449496,-325.86929875,0.00025113,2]
[374092116,1753199449506,-151.0,0.00025114,7]
[374092118,1753199449515,-232.841339,0.00025114,7]
[374092120,1753199449524,-151.0,0.00025114,7]
[374092122,1753199449534,-151.0,0.00025114,7]
[374092124,1753199449543,-151.0,0.00025114,7]
[374092126,1753199449553,-151.0,0.00025114,7]
[374092128,1753199449563,-151.0,0.00025114,7]
[374092131,1753199449573,-151.0,0.00025114,7]
[374092133,1753199449583,-151.0,0.00025114,7]
[374092135,1753199449593,-151.0,0.00025114,7]
[374092137,1753199449603,-151.0,0.00025114,7]
[374092139,1753199449614,-151.0,0.00025114,7]
[374092141,1753199449624,-151.0,0.00025114,7]
[374092143,1753199449634,-151.0,0.00025114,7]
[374092145,1753199449644,-151.0,0.00025114,7]
[374092147,1753199449653,-151.0,0.00025114,7]
[374092149,1753199449663,-151.0,0.00025114,7]
[374092151,1753199449673,-192.856538,0.00025114,7]
[374092153,1753199449683,-151.0,0.00025114,7]
[374092155,1753199449693,-191.524113,0.00025114,7]
[374092157,1753199449703,-152.175719,0.00025114,7]
[374092158,1753199449712,-151.0,0.00025114,7]
[374092159,1753199449723,-175.779188,0.00025114,7]
[374092160,1753199449733,-151.0,0.00025114,7]
[374092161,1753199449743,-151.0,0.00025114,7]
[374092162,1753199449753,-151.0,0.00025114,7]
[374092163,1753199449764,-151.0,0.00025114,7]
[374092164,1753199449774,-151.0,0.00025114,7]
[374092165,1753199449783,-151.0,0.00025114,7]
[374092166,1753199449793,-151.0,0.00025114,7]
[374092167,1753199449803,-151.0,0.00025114,7]
[374092168,1753199449813,-151.0,0.00025114,7]
[374092169,1753199449822,-151957.38765098,0.00025131,20]
[374092170,1753199449901,-460.0,0.00025131,20]
[374092171,1753199449942,-69163.42635132,0.00025131,20]
[374092174,1753199449959,-151.0,0.00025114,7]
[374092176,1753199449970,-3151.19933262,0.00025131,20]
[374092180,1753199450004,460.0,0.0001676,2]
[374092188,1753199450106,-460.0,0.00016761,2]
[374092189,1753199450117,-460.0,0.00016762,2]
[374092190,1753199450127,-460.0,0.00017034,2]
[374092191,1753199450137,-460.0,0.00017035,2]
[374092192,1753199450146,-460.0,0.00017308,2]
[374092193,1753199450156,-460.0,0.00017309,2]
[374092194,1753199450166,-359.33961868,0.00017582,2]
[374092195,1753199450176,-373.02661119,0.00017583,2]
[374092196,1753199450190,-86.97338881,0.00017583,2]
[374092197,1753199450200,-380.12591118,0.00017742,2]
[374092198,1753199450214,-24619.87408882,0.00017742,2]
[374092199,1753199450224,-460.0,0.00017857,2]
[374092200,1753199450233,-460.0,0.00017857,2]
[374092201,1753199450243,-460.0,0.00018131,2]
[374092202,1753199450253,-460.0,0.00018405,2]
[374092203,1753199450263,-151.0,0.0002508,7]
[374092204,1753199450273,-258.03379,0.00025114,7]
[374092205,1753199450288,-93435.39212118,0.00025131,20]
[374092206,1753199450301,-466.53666222,0.00025131,20]
[374092207,1753199450400,-3130.03310113,0.00025131,20]
[374092208,1753199450416,-561.01946318,0.00025131,20]
[374092209,1753199450440,-460.0,0.00016761,2]
[374092210,1753199450450,-460.0,0.00018679,2]
[374092211,1753199450459,-16934.86988804,0.00025131,20]
[374092212,1753199450471,-348.05419323,0.00025131,20]
[374092401,1753199452470,460.0,0.0001676,2]
[374092409,1753199452533,460.0,0.0001676,2]
[374092415,1753199452585,460.0,0.00016761,2]
[374092428,1753199452700,460.0,0.00016763,2]
[374092431,1753199452713,-460.0,0.00017034,2]
[374092433,1753199452722,-244.96471896,0.00017035,2]
[374092435,1753199452733,-215.03528104,0.00017035,2]
[374092437,1753199452743,-460.0,0.00017308,2]
[374092439,1753199452752,-460.0,0.00017309,2]
[374092441,1753199452762,-17082.33601069,0.00017483,2]
[374092443,1753199452771,-460.0,0.00017583,2]
[374092445,1753199452781,-460.0,0.00017857,2]
[374092447,1753199452790,-54.98305435,0.00018131,2]
[374092464,1753199452933,4449.51818756,0.0001677,2]
[374092467,1753199452956,-405.01694565,0.00018131,2]
[374092469,1753199452966,-460.0,0.00018405,2]
[374092471,1753199452975,-460.0,0.00018679,2]
[374092473,1753199452985,-460.0,0.00018953,2]
[374092476,1753199452995,-460.0,0.00018953,2]
[374092478,1753199453004,-460.0,0.00019227,2]
[374092480,1753199453014,-460.0,0.00019501,2]
[374092482,1753199453026,-460.0,0.00019775,2]
[374092484,1753199453035,-460.0,0.00020049,2]
[374092486,1753199453044,-460.0,0.00020323,2]
[374092488,1753199453054,-251.79525504,0.00020597,2]
[374092490,1753199453063,-3747.86,0.0002489,10]
[374092492,1753199453072,-10873.71408575,0.00025031,2]
[374092494,1753199453081,-972336.72340406,0.00025131,20]
[374092496,1753199453092,-236189.48839942,0.00025131,20]
[374092505,1753199453168,460.0,0.0001676,2]
[374092514,1753199453246,460.0,0.00016762,2]
[374092521,1753199453301,460.0,0.0001676,2]
[374092523,1753199453405,471.28,0.00016763,2]
[374092524,1753199453451,460.0,0.0001676,2]
[374092525,1753199453510,460.0,0.0001676,2]
[374092565,1753199453933,460.0,0.00016761,2]
[374092701,1753199455255,460.0,0.00016761,2]
[374092936,1753199458096,19.20181244,0.0001676,2]
[374092939,1753199458121,440.79818756,0.0001676,2]
[374093039,1753199459088,460.0,0.00016761,2]
[374093109,1753199462900,463.41769715,0.00016761,2]
[374093110,1753199463223,460.0,0.0001676,2]
[374093111,1753199463336,460.0,0.00016761,2]
[374093112,1753199464682,463.25652406,0.00016761,2]
[374093113,1753199466159,152.68150462,0.0001676,2]
[374093114,1753199467053,460.0,0.00016761,2]
[374093115,1753199467248,460.0,0.00016761,2]
[374093116,1753199475707,460.0,0.0001676,2]
[374093117,1753199476678,460.0,0.00016762,2]
[374093118,1753199477977,460.0,0.00016761,2]
[374093119,1753199480928,460.0,0.00016761,2]
[374093120,1753199481437,460.0,0.00016761,2]
[374093121,1753199482024,460.0,0.0001676,2]
[374093122,1753199482763,461.80574713,0.0001676,2]
[374093123,1753199484551,460.0,0.0001676,2]
[374093124,1753199487643,460.0,0.00016761,2]
[374093125,1753199489595,460.0,0.0001676,2]
[374093126,1753199492550,460.0,0.00016761,2]
[374093127,1753199494218,460.0,0.0001676,2]
[374093128,1753199495847,463.0276002,0.0001676,2]
[374093129,1753199496137,195.01273928,0.00016761,2]
[374093130,1753199496164,264.98726072,0.00016761,2]
[374093131,1753199497293,464.17329119,0.00016761,2]
[374093132,1753199498902,460.0,0.0001676,2]
[374093133,1753199499407,460.0,0.00016761,2]
[374093134,1753199499884,460.0,0.0001676,2]
[374093135,1753199500405,460.0,0.00016761,2]
[374093136,1753199501911,460.0,0.00016761,2]
[374093137,1753199502426,460.0,0.0001676,2]
[374093138,1753199504371,460.0,0.00016761,2]
[374093139,1753199505496,460.0,0.0001676,2]
[374093140,1753199507164,460.0,0.00016761,2]
[374093141,1753199507924,460.0,0.0001676,2]
[374093142,1753199509478,217.99723468,0.0001676,2]
[374093143,1753199510003,220.303939,0.00013699,2]
[374093144,1753199510308,460.0,0.0001676,2]
[374093145,1753199510409,460.0,0.0001676,2]
[374093146,1753199511470,3312.53827441,0.0001677,2]
[374093147,1753199511494,1687.46172559,0.0001677,2]
[374093148,1753199511566,460.0,0.00016761,2]
[374093151,1753199516024,460.0,0.00016761,2]
[374093152,1753199519058,460.0,0.0001676,2]
[374093153,1753199519100,460.0,0.00016762,2]
[374093154,1753199521659,460.0,0.00016762,2]
[374093155,1753199521939,460.0,0.00016761,2]
[374093156,1753199522700,460.0,0.0001676,2]
[374093157,1753199524072,197.57944575,0.0001676,2]
[374093158,1753199526663,4894.95882866,0.0001677,2]
[374093159,1753199526690,105.04117134,0.0001677,2]
[374093160,1753199530338,460.0,0.00016761,2]
[374093161,1753199534879,460.0,0.00016762,2]
[374093162,1753199536446,500.0,0.0001676,2]
[374093163,1753199536491,500.0,0.0001676,2]
[374093164,1753199536541,500.0,0.0001676,2]
[374093165,1753199536571,500.0,0.0001676,2]
[374093166,1753199536644,500.0,0.0001676,2]
[374093167,1753199536673,500.0,0.0001676,2]
[374093168,1753199536704,500.0,0.0001676,2]
[374093169,1753199536732,500.0,0.0001676,2]
[374093170,1753199536764,500.0,0.0001676,2]
[374093171,1753199536793,40.0,0.0001676,2]
[374093172,1753199536816,349.50053485,0.0001676,2]
[374093173,1753199536849,500.0,0.0001676,2]
[374093174,1753199536997,559.65155913,0.00016762,2]
[374093175,1753199537086,207.75963654,0.0001676,2]
[374093176,1753199537941,500.0,0.0001676,2]
[374093177,1753199538260,500.0,0.0001676,2]
[374093178,1753199538575,455.77978057,0.0001676,2]
[374093179,1753199538749,244.07521076,0.0001676,2]
[374093180,1753199538780,460.0,0.0001676,2]
[374093181,1753199538898,182.6682792,0.00016761,2]
[374093182,1753199541078,460.0,0.0001676,2]
[374093183,1753199542637,580.56499895,0.0001678,2]
[374093184,1753199542663,1117.35385521,0.0001678,2]
[374093185,1753199542800,460.0,0.00016761,2]
[374093186,1753199542984,460.0,0.0001676,2]
[374093187,1753199543174,500.0,0.0001676,2]
[374093188,1753199543256,500.0,0.0001676,2]
[374093189,1753199543343,155.82528149,0.0001676,2]
[374093190,1753199544570,460.0,0.0001676,2]
[374093191,1753199546431,500.0,0.0001676,2]
[374093192,1753199546462,500.0,0.0001676,2]
[374093193,1753199546490,346.8208633,0.0001676,2]
[374093194,1753199546513,153.1791367,0.0001676,2]
[374093195,1753199546542,500.0,0.0001676,2]
[374093196,1753199546569,500.0,0.0001676,2]
[374093197,1753199546598,500.0,0.0001676,2]
[374093198,1753199546630,500.0,0.0001676,2]
[374093199,1753199546659,500.0,0.0001676,2]
[374093200,1753199546696,500.0,0.0001676,2]
[374093201,1753199546725,343.62448377,0.0001676,2]
[374093202,1753199546753,500.0,0.0001676,2]
[374093203,1753199546782,417.50000001,0.0001676,2]
[374093204,1753199546816,219.0,0.0001676,2]
[374093205,1753199547248,366.69637952,0.00016762,2]
[374093206,1753199547271,93.30362048,0.00016762,2]
[374093207,1753199551343,460.0,0.00016761,2]
[374093208,1753199551548,460.0,0.00016762,2]
[374093209,1753199559303,460.0,0.0001676,2]
[374093210,1753199562811,460.0,0.0001676,2]
[374093211,1753199563082,410.0,0.0001676,2]
[374093212,1753199563754,460.0,0.0001676,2]
[374093213,1753199564625,442.82822868,0.0001676,2]
[374093214,1753199565237,460.0,0.0001676,2]
[374093215,1753199565268,460.0,0.00016762,2]
[374093216,1753199566234,833.86815084,0.00016762,2]
[374093217,1753199566258,136.54184916,0.00016762,2]
[374093218,1753199567301,460.0,0.0001676,2]
[374093219,1753199568008,979.25,0.00016763,2]
[374093220,1753199568939,460.0,0.00016762,2]
[374093221,1753199568973,220.163003,0.00016523,2]
[374093222,1753199569270,575.482567,0.00016523,2]
[374093223,1753199570695,397.4557772,0.00016524,2]
[374093224,1753199571193,198.7278886,0.00016525,2]
[374093225,1753199572787,461.50260577,0.0001676,2]
[374093226,1753199573555,1110.87630927,0.0001678,2]
[374093227,1753199573578,3889.12369073,0.0001678,2]
[374093228,1753199573681,460.0,0.00016761,2]
[374093229,1753199574126,650.87630927,0.00016661,2]
[374093230,1753199574150,5000.0,0.00016661,2]
[374093231,1753199574173,5000.0,0.00016661,2]
[374093232,1753199574195,5000.0,0.00016661,2]
[374093233,1753199574219,5000.0,0.00016661,2]
[374093234,1753199574243,5000.0,0.00016661,2]
[374093235,1753199574266,5000.0,0.00016661,2]
[374093236,1753199574289,5000.0,0.00016661,2]
[374093237,1753199574311,5000.0,0.00016661,2]
[374093238,1753199574334,5000.0,0.00016661,2]
[374093239,1753199574467,5000.0,0.00016661,2]
[374093240,1753199574492,9434.95882866,0.00016661,2]
[374093241,1753199574527,10000.0,0.00016661,2]
[374093242,1753199574553,10000.0,0.00016661,2]
[374093243,1753199574577,10000.0,0.00016661,2]
[374093244,1753199574601,10000.0,0.00016661,2]
[374093245,1753199574625,10000.0,0.00016661,2]
[374093246,1753199574648,10000.0,0.00016661,2]
[374093247,1753199574671,10000.0,0.00016661,2]
[374093248,1753199574694,10000.0,0.00016661,2]
[374093249,1753199574718,10000.0,0.00016661,2]
[374093250,1753199574741,10000.0,0.00016661,2]
[374093251,1753199574763,10000.0,0.00016661,2]
[374093252,1753199574786,10000.0,0.00016661,2]
[374093253,1753199574810,10000.0,0.00016661,2]
[374093254,1753199574835,10000.0,0.00016661,2]
[374093255,1753199574858,10000.0,0.00016661,2]
[374093256,1753199574881,10000.0,0.00016661,2]
[374093257,1753199574904,10000.0,0.00016661,2]
[374093258,1753199574928,10000.0,0.00016661,2]
[374093259,1753199574951,10000.0,0.00016661,2]
[374093260,1753199574976,10000.0,0.00016661,2]
[374093261,1753199574998,10000.0,0.00016661,2]
[374093262,1753199575023,10000.0,0.00016661,2]
[374093263,1753199575046,10000.0,0.00016661,2]
[374093264,1753199575070,10000.0,0.00016661,2]
[374093265,1753199575094,10000.0,0.00016661,2]
[374093266,1753199575117,10000.0,0.00016661,2]
[374093267,1753199575140,10000.0,0.00016661,2]
[374093268,1753199575164,10000.0,0.00016661,2]
[374093269,1753199575187,10000.0,0.00016661,2]
[374093270,1753199575211,10000.0,0.00016661,2]
[374093271,1753199575238,9914.16486207,0.00016661,2]
[374093272,1753199575296,460.0,0.0001676,2]
[374093273,1753199576979,460.0,0.00016761,2]